Workbook

Sheet GAME TRACKER
C2: STAR | D2: SRS | E2: TEAM | F2: QUALITIES | H2: 1H | I2: '2h | J2: TOT | K2: =RANDBETWEEN(1,6) -> 6
C3: 1★ | D3: 30 | E3: Auburn | F3: TEMPO SHARP RANGED• SLOPPY SPREAD OPEN• SPACED BLOCK TRAINED• FT: 11-53 | G3: VISITOR | H3: =D20 -> 25 | I3: =SUM(I8+I9+I10+I11+I12+I13+I14+I15+I16+I19+I21+I22+I23+I24) -> 46 | J3: =H3+I3+I27+I28+I29+I30 -> 85 | K3: =RANDBETWEEN(1,6) -> 6
D4: 23 | E4: Arizona | F4: TEMPO SHARP• O-BIG• SPREAD OPEN• BLOCK• D-BIG FT: 11-54 | G4: HOME | H4: =E20 -> 34 | I4: =SUM(J8+J9+J10+J11+J12+J13+J14+J15+J16+J19+J21+J22+J23+J24) -> 37 | J4: =H4+I4+J27+J28+J29+J30 -> 84 | K4: =RANDBETWEEN(1,6) -> 1
K5: =IF(G46=1,"•","○") -> ○
B7: 1ST HALF | C7: ROLL | D7: VISITOR | E7: HOME | F7: NOTE | G7: 2ND HALF | H7: ROLL | I7: VISITOR | J7: HOME | K7: NOTE
B8: 18:00 | C8: 146y | D8: 2 | E8: 2 | F8: 2-2 – Neither team DULL or LOCK | G8: 18:00 | H8: 116y | I8: 5 | J8: 2 | K8: 30-36 – AUBURN passes STAR check
B9: 16:00 | C9: 336y | D9: 5 | E9: 5 | F9: 7-7 – Neither team in foul trouble | G9: 16:00 | H9: 356 | I9: 6 | J9: 7 | K9: 36-43 – BOTH TEAMS get TEMPO bonus
B10: 14:00 | C10: 223y | D10: 2 | E10: 4 | F10: 9-11 – ARIZONA passes O-BIG check | G10: 14:00 | H10: 334y | I10: 2 | J10: 0 | K10: 38-43 – AUBURN passed TRAINED check
B11: 12:00 | C11: 236y | D11: 3 | E11: 3 | F11: 12-14 – Not late in the game | G11: 12:00 | H11: 566y | I11: 6 | J11: 5 | K11: 44-48 – AUBURN gets STAR bonus
B12: 10:00 | C12: 256 | D12: 4 | E12: 4 | F12: 16-18 – Neither team HOT | G12: 10:00 | H12: 346y | I12: 5 | J12: 6 | K12: 49-54 – Neither team HOT
B13: 8:00 | C13: 124y | D13: 0 | E13: 4 | F13: 16-22 – ARIZONA passes SHARP check | G13: 8:00 | H13: 166 | I13: 3 | J13: 4 | K13: 52-58 – Neither team CRISP
B14: 6:00 | C14: 234y | D14: 2 | E14: 4 | F14: 18-26 – ARIZONA passes D-BIG check | G14: 6:00 | H14: 124y | I14: 4 | J14: 0 | K14: 56-58 – AUBURN passes SHARP check
B15: 4:00 | C15: 223 | D15: 4 | E15: 4 | F15: 22-30 – Neither team O-BIG or D-SMALL | G15: 4:00 | H15: 123y | I15: 6 | J15: 6 | K15: 62-64 – Neither team LOCK or passed STAR check
B16: 2:00 | C16: 466 | D16: 0 | E16: 2 | F16: 22-32 – and one for ARIZONA! (FT missed) (X) AUBURN | G16: 2:00 | H16: 556 | I16: 3 | J16: 5 | K16: 65-69 – Decider dice favors ARIZONA, who hits 2 FT
B17: 0:00 | C17: 345 | D17: 3 | E17: 2 | F17: 25-34 – 2-2 and 2 FT for each team. (AUBURN 1 for 2, ARIZONA 0 for 2). (X) ARI, (XX) AUB
I18: VISITOR | J18: HOME | K18: NOTE
D19: VISITOR | E19: HOME | F19: Use if either team is leading by 11+ after 2:00 | G19: 0:00
B20: HALFTIME | D20: =SUM(D8:D17) -> 25 | E20: =SUM(E8:E17) -> 34 | G20: OR
F21: Use if either team is leading by 4-10 after 2:00 | G21: 1:30 | H21: 41y | I21: 0 | J21: 2 | K21: 65-71 – AUBURN fails STAR check, misses 3. ARIZONA hits 2 FT
B22: SRS Diff | C22: Team ★ | G22: 1:00 | H22: 65 | I22: 4 | J22: 0 | K22: 69-71 – AUBURN hits 2, gets steal, hits another 2!
B23: 0-2 | C23: 0★ | G23: 0:30 | K23: 2-point game, skip to final shot
B24: 3-9 | C24: 1★ | G24: 0:00 | H24: 46y | I24: 2 | J24: 0 | K24: 71-71 – Decider die favors AUBURN – they hit the 2 at the buzzer!
B25: 10-16 | C25: 2★
B26: 17-23 | C26: 3★ | G26: OVERTIME | I26: VISITOR | J26: HOME | K26: NOTE
B27: 24-30 | C27: 4★ | G27: 3:00 | H27: 346 | I27: 5 | J27: 6 | K27: 76-77 – Neither team HOT
B28: 31+ | C28: 5★ | G28: 1:00 | H28: 446 | I28: 9 | J28: 5 | K28: 85-82 – AUBURN gets STAR bonus
G29: 0:30 | H29: 62 | K29: 3-point game, skip to final shot
G30: 0:00 | H30: 62 | I30: 0 | J30: 2 | K30: 85-84 – ARI foulled shooting 3 at buzzer! MISSED first, made next 2.
H33: In OT, first 2 rolls are normal chart, 0:30 and 0:00 rolls should be determined using Final 2:00 / Final Shot logic
G46: =RANDBETWEEN(1,2) -> 2

Sheet Individual Scoring Option
B2: Michigan State | C2: POS | D2: PTS | E2: PTS % | F2: Range | I2: Mississippi State | J2: POS | K2: PTS | L2: PTS % | M2: Range
P3: x66 options only happen in the second half of games with a 10-point margin or more, else re-roll
B4: Tyson Walker | C4: G | D4: 582 | E4: =D4/2413 -> 0.241193535 | F4: 11-23 | I4: Josh Hubbard | J4: G | K4: 583 | L4: =K4/2542 -> 0.2293469709 | M4: 11-22
B5: Malik Hall | D5: 416 | E5: =D5/2413 -> 0.1723995027 | F5: 24-33 | I5: Tolu Smith | K5: 335 | L5: =K5/2542 -> 0.1317859953 | M5: 23-31
B6: A.J. Hoggard | C6: G | D6: 363 | E6: =D6/2413 -> 0.150435143 | F6: 34-42 | I6: Cameron Matthews | K6: 322 | L6: =K6/2542 -> 0.1266719119 | M6: 32-36
B7: Jaden Akins | C7: G | D7: 337 | E7: =D7/2413 -> 0.1396601741 | F7: 43-51 | I7: Shakeel Moore | J7: G | K7: 256 | L7: =K7/2542 -> 0.1007081039 | M7: 41-44
B8: Tre Holloman | C8: G | D8: 193 | E8: =D8/2413 -> 0.07998342312 | F8: 52-54 | I8: Dashawn Davis | J8: G | K8: 228 | L8: =K8/2542 -> 0.089693155 | M8: 45-51
B9: Carson Cooper | D9: 118 | E9: =D9/2413 -> 0.04890178201 | F9: 55-56 | I9: D.J. Jeffries | K9: 206 | L9: =K9/2542 -> 0.08103855232 | M9: 52-54
B10: Coen Carr | D10: 109 | E10: =D10/2413 -> 0.04517198508 | F10: 61-62 | I10: Jimmy Bell | K10: 173 | L10: =K10/2542 -> 0.06805664831 | M10: 55-61
B11: Mady Sissoko | D11: 109 | E11: =D11/2413 -> 0.04517198508 | F11: 63-64 | I11: Shawn Jones | J11: G | K11: 157 | L11: =K11/2542 -> 0.06176239182 | M11: 62
B12: Xavier Booker | D12: 90 | E12: =D12/2413 -> 0.03729796933 | F12: 65 | I12: Trey Fort | J12: G | K12: 99 | L12: =K12/2542 -> 0.03894571204 | M12: 63
B13: Jeremy Fears Jr. | C13: G | D13: 42 | E13: =D13/2413 -> 0.01740571902 | F13: x66 | G13: 1-2 | I13: KeShawn Murphy | K13: 99 | L13: =K13/2542 -> 0.03894571204 | M13: 64
B14: Jaxon Kohler | D14: 38 | E14: =D14/2413 -> 0.0157480315 | F14: x66 | G14: 3 | I14: Gai Chol | K14: 34 | L14: =K14/2542 -> 0.01337529504 | M14: 65
B15: Davis Smith | C15: G | D15: 10 | E15: =D15/2413 -> 0.004144218815 | F15: x66 | G15: 4 | I15: Andrew Taylor | J15: G | K15: 27 | L15: =K15/2542 -> 0.01062155783 | M15: x66 | N15: 1-4
B16: Steven Izzo | C16: G | D16: 3 | E16: =D16/2413 -> 0.001243265644 | F16: x66 | G16: 5 | I16: Jaquan Scott | J16: G | K16: 13 | L16: =K16/2542 -> 0.005114083399 | M16: x66 | N16: 5
B17: Nick Sanders | C17: G | D17: 3 | E17: =D17/2413 -> 0.001243265644 | F17: x66 | G17: 6 | I17: Adrian Myers | J17: G | K17: 10 | L17: =K17/2542 -> 0.003933910307 | M17: x66 | N17: 6
B19: Michigan State | C19: POS | D19: PTS | E19: PTS % | F19: Range | I19: Mississippi State | J19: POS | K19: PTS | L19: PTS % | M19: Range
B21: Tyson Walker | C21: G | D21: 17 | I21: Josh Hubbard | J21: G | K21: 31
B22: Malik Hall | D22: 17 | I22: Tolu Smith | K22: 8
B23: A.J. Hoggard | C23: G | D23: 7 | I23: Cameron Matthews | K23: 4
B24: Jaden Akins | C24: G | D24: 21 | I24: Shakeel Moore | J24: G | K24: 4
B25: Tre Holloman | C25: G | D25: 4 | I25: Dashawn Davis | J25: G | K25: 6
B26: Carson Cooper | I26: D.J. Jeffries | K26: 5
B27: Coen Carr | D27: 4 | I27: Jimmy Bell | K27: 5
B28: Mady Sissoko | D28: 2 | I28: Shawn Jones | J28: G | K28: 4
B29: Xavier Booker | D29: 3 | I29: Trey Fort | J29: G
B30: Jeremy Fears Jr. | C30: G | I30: KeShawn Murphy
B31: Jaxon Kohler | I31: Gai Chol | K31: 5
B32: Davis Smith | C32: G | I32: Andrew Taylor | J32: G
B33: Steven Izzo | C33: G | I33: Jaquan Scott | J33: G
B34: Nick Sanders | C34: G | I34: Adrian Myers | J34: G
